fUSD/lending_fUSD_20251223
["ID","MTS","AMOUNT","RATE_DAILY","PERIOD"]
[399536879,1766460646171,-151.21139446,0.00016754,2]
[399536880,1766460646180,-500.0,0.00016754,2]
[399536881,1766460646190,-156.56310357,0.00016754,2]
[399536882,1766460646199,-500.0,0.00016754,2]
[399536883,1766460646208,-159.88541557,0.00016754,2]
[399536884,1766460646217,-500.0,0.00016754,2]
[399536885,1766460646227,-500.0,0.00016754,2]
[399536886,1766460646236,-500.0,0.00016754,2]
[399536887,1766460646245,-816.0,0.00016754,2]
[399536888,1766460646254,-6779.7617378,0.00016774,2]
[399536889,1766460646264,-657.8524278,0.00016774,2]
[399536890,1766460646273,-194.64906062,0.00016781,2]
[399536891,1766460646282,-252.2705667,0.00016781,2]
[399536892,1766460646292,-234.26533667,0.00016781,2]
[399536893,1766460646301,-433.0,0.00016781,2]
[399536894,1766460646310,-362.47860787,0.00016781,2]
[399536895,1766460646320,-500.0,0.00016781,2]
[399536896,1766460646329,-500.0,0.00016781,2]
[399536897,1766460646339,-500.0,0.00016781,2]
[399536898,1766460646348,-500.0,0.00016781,2]
[399536899,1766460646358,-500.0,0.00016781,2]
[399536900,1766460646367,-500.0,0.00016781,2]
[399536901,1766460646378,-816.0,0.00016781,2]
[399536902,1766460646387,-215.0,0.00016806,2]
[399536903,1766460646397,-500.0,0.00016808,2]
[399536904,1766460646406,-500.0,0.00016808,2]
[399536905,1766460646415,-433.0,0.00016809,2]
[399536906,1766460646424,-500.0,0.00016809,2]
[399536907,1766460646433,-172.61056672,0.00016809,2]
[399536908,1766460646443,-500.0,0.00016809,2]
[399536909,1766460646452,-500.0,0.00016809,2]
[399536910,1766460646462,-500.0,0.00016809,2]
[399536911,1766460646470,-500.0,0.00016809,2]
[399536912,1766460646480,-816.0,0.00016809,2]
[399536913,1766460646489,-215.0,0.00016826,2]
[399536914,1766460646498,-415.33,0.00016832,2]
[399536915,1766460646507,-433.0,0.00016836,2]
[399536916,1766460646516,-500.0,0.00016836,2]
[399536917,1766460646526,-500.0,0.00016836,2]
[399536918,1766460646535,-500.0,0.00016836,2]
[399536919,1766460646544,-500.0,0.00016836,2]
[399536920,1766460646553,-500.0,0.00016836,2]
[399536921,1766460646563,-816.0,0.00016836,2]
[399536922,1766460646572,-152.3404577,0.00016838,2]
[399536923,1766460646581,-433.0,0.00016863,2]
[399536924,1766460646595,-500.0,0.00016863,2]
[399536925,1766460646605,-610.0,0.00016863,2]
[399536926,1766460646614,-500.0,0.00016863,2]
[399536927,1766460646624,-500.0,0.00016863,2]
[399536928,1766460646633,-500.0,0.00016863,2]
[399536929,1766460646643,-816.0,0.00016863,2]
[399536930,1766460646653,-200.0,0.00016864,2]
[399536931,1766460646663,-215.0,0.00016871,2]
[399536932,1766460646673,-433.0,0.00016891,2]
[399536933,1766460646683,-500.0,0.00016891,2]
[399536934,1766460646693,-500.0,0.00016891,2]
[399536935,1766460646703,-500.0,0.00016891,2]
[399536936,1766460646712,-500.0,0.00016891,2]
[399536937,1766460646722,-816.0,0.00016891,2]
[399536938,1766460646731,-10000.0,0.000169,2]
[399536939,1766460646741,-10262.40319761,0.000169,2]
[399536940,1766460646751,-166.87140281,0.000169,2]
[399536941,1766460646760,-307.10731212,0.000169,2]
[399536942,1766460646770,-1119.06959868,0.000169,2]
[399536943,1766460646779,-685.62651687,0.000169,2]
[399536944,1766460646793,-440.9,0.00016901,2]
[399536945,1766460646803,-433.0,0.00016918,2]
[399536946,1766460646813,-314.61850555,0.00016918,2]
[399536947,1766460646822,-500.0,0.00016918,2]
[399536948,1766460646832,-500.0,0.00016918,2]
[399536949,1766460646842,-500.0,0.00016918,2]
[399536950,1766460646852,-816.0,0.00016918,2]
[399536951,1766460646862,-215.0,0.00016946,2]
[399536952,1766460646872,-433.0,0.00016946,2]
[399536953,1766460646882,-500.0,0.00016946,2]
[399536954,1766460646895,-500.0,0.00016946,2]
[399536955,1766460646905,-500.0,0.00016946,2]
[399536956,1766460646915,-816.0,0.00016946,2]
[399536957,1766460646924,-215.0,0.00016954,2]
[399536958,1766460646935,-215.0,0.00016969,2]
[399536959,1766460646944,-509.57061398,0.00016972,2]
[399536960,1766460646954,-500.0,0.00016972,2]
[399536961,1766460646965,-500.0,0.00016972,2]
[399536962,1766460646975,-500.0,0.00016973,2]
[399536963,1766460646989,-607.43916277,0.00016973,2]
[399536964,1766460646999,-500.36700387,0.00016973,2]
[399536965,1766460647009,-500.0,0.00016973,2]
[399536966,1766460647019,-162.11850121,0.00016973,2]
[399536967,1766460647030,-500.0,0.00016973,2]
[399536968,1766460647040,-500.0,0.00016973,2]
[399536969,1766460647050,-323.88004894,0.00016973,2]
[399536970,1766460647060,-517.97049559,0.00016973,2]
[399536971,1766460647070,-500.0,0.00016973,2]
[399536972,1766460647080,-187.7589045,0.00016973,2]
[399536973,1766460647090,-500.0,0.00016973,2]
[399536974,1766460647100,-500.0,0.00016973,2]
[399536975,1766460647110,-500.0,0.00016973,2]
[399536976,1766460647119,-500.0,0.00016973,2]
[399536977,1766460647130,-500.43249558,0.00016973,2]
[399536978,1766460647142,-500.0,0.00016973,2]
[399536979,1766460647152,-179.79320465,0.00016973,2]
[399536980,1766460647164,-500.0,0.00016973,2]
[399536981,1766460647175,-500.0,0.00016973,2]
[399536982,1766460647190,-500.22764371,0.00016973,2]
[399536983,1766460647201,-473.78280811,0.00016973,2]
[399536984,1766460647211,-500.0,0.00016973,2]
[399536985,1766460647220,-500.0,0.00016973,2]
[399536986,1766460647230,-500.0,0.00016973,2]
[399536987,1766460647240,-500.0,0.00016973,2]
[399536988,1766460647250,-160.2175718,0.00016973,2]
[399536989,1766460647260,-192.52062899,0.00016973,2]
[399536990,1766460647270,-500.0,0.00016973,2]
[399536991,1766460647282,-500.0,0.00016973,2]
[399536992,1766460647291,-160.23090076,0.00016973,2]
[399536993,1766460647301,-500.0,0.00016973,2]
[399536994,1766460647311,-500.0,0.00016973,2]
[399536995,1766460647321,-500.0,0.00016973,2]
[399536996,1766460647331,-160.22993798,0.00016973,2]
[399536997,1766460647340,-500.0,0.00016973,2]
[399536998,1766460647350,-500.25936522,0.00016973,2]
[399536999,1766460647360,-500.36062561,0.00016973,2]
[399537000,1766460647370,-500.60067632,0.00016973,2]
[399537001,1766460647382,-500.0,0.00016973,2]
[399537002,1766460647392,-344.80719506,0.00016973,2]
[399537003,1766460647402,-500.0,0.00016973,2]
[399537004,1766460647412,-468.76932561,0.00016973,2]
[399537005,1766460647421,-166.9944042,0.00016973,2]
[399537006,1766460647433,-500.0,0.00016973,2]
[399537007,1766460647442,-161.15600933,0.00016973,2]
[399537008,1766460647452,-500.0,0.00016973,2]
[399537009,1766460647461,-501.07737956,0.00016973,2]
[399537010,1766460647471,-500.0,0.00016973,2]
[399537011,1766460647480,-523.24658679,0.00016973,2]
[399537012,1766460647490,-500.0,0.00016973,2]
[399537013,1766460647500,-500.0,0.00016973,2]
[399537014,1766460647510,-220.37397478,0.00016973,2]
[399537015,1766460647519,-395.43440104,0.00016973,2]
[399537016,1766460647528,-516.60983316,0.00016973,2]
[399537017,1766460647538,-500.30572668,0.00016973,2]
[399537018,1766460647547,-500.0,0.00016973,2]
[399537019,1766460647557,-159.50855904,0.00016973,2]
[399537020,1766460647568,-500.0,0.00016973,2]
[399537021,1766460647578,-500.0,0.00016973,2]
[399537022,1766460647588,-500.0,0.00016973,2]
[399537023,1766460647598,-500.0,0.00016973,2]
[399537024,1766460647607,-500.22692872,0.00016973,2]
[399537025,1766460647617,-500.0,0.00016973,2]
[399537026,1766460647626,-500.0,0.00016973,2]
[399537027,1766460647636,-577.94259684,0.00016973,2]
[399537028,1766460647646,-500.0,0.00016973,2]
[399537029,1766460647656,-500.0,0.00016973,2]
[399537030,1766460647666,-433.0,0.00016973,2]
[399537031,1766460647676,-510.1590015,0.00016973,2]
[399537032,1766460647686,-500.0,0.00016973,2]
[399537033,1766460647696,-500.0,0.00016973,2]
[399537034,1766460647706,-816.0,0.00016973,2]
[399537035,1766460647716,-52773.74,0.00016986,2]
[399537036,1766460647726,-600.0,0.00016986,2]
[399537037,1766460647736,-151.0,0.00016997,2]
[399537038,1766460647746,-300.0,0.00016999,2]
[399537039,1766460647755,-666.0,0.00016999,2]
[399537040,1766460647764,-300.0,0.00016999,2]
[399537041,1766460647774,-500.0,0.00016999,2]
[399537042,1766460647785,-500.0,0.00016999,2]
[399537043,1766460647795,-500.0,0.00016999,2]
[399537044,1766460647805,-500.0,0.00016999,2]
[399537045,1766460647815,-614.68592822,0.00016999,2]
[399537046,1766460647825,-300.0,0.00016999,2]
[399537047,1766460647834,-500.0,0.00016999,2]
[399537048,1766460647845,-500.0,0.00016999,2]
[399537049,1766460647854,-453.17378986,0.00016999,2]
[399537050,1766460647864,-300.0,0.00016999,2]
[399537051,1766460647873,-670.82271321,0.00016999,2]
[399537052,1766460647883,-500.0,0.00016999,2]
[399537053,1766460647893,-500.0,0.00016999,2]
[399537054,1766460647905,-500.0,0.00016999,2]
[399537055,1766460647915,-500.0,0.00016999,2]
[399537056,1766460647924,-500.0,0.00016999,2]
[399537057,1766460647935,-500.0,0.00016999,2]
[399537058,1766460647944,-500.0,0.00016999,2]
[399537059,1766460647954,-287.98066851,0.00016999,2]
[399537060,1766460647964,-435301.90579173,0.00017,2]
[399537061,1766460647974,-3280433.80550923,0.00017,2]
[399537062,1766460647983,-150.0,0.00017,2]
[399537063,1766460647993,-250.0,0.00017,2]
[399537064,1766460648003,-2000.0,0.00017,2]
[399537065,1766460648012,-1000.0,0.00017,2]
[399537066,1766460648022,-1000.0,0.00017,2]
[399537067,1766460648031,-1000.0,0.00017,2]
[399537068,1766460648041,-1000.0,0.00017,2]
[399537069,1766460648051,-1000.0,0.00017,2]
[399537070,1766460648060,-1000.0,0.00017,2]
[399537071,1766460648069,-1000.0,0.00017,2]
[399537072,1766460648079,-1000.0,0.00017,2]
[399537073,1766460648088,-1000.0,0.00017,2]
[399537074,1766460648098,-1000.0,0.00017,2]
[399537075,1766460648108,-1000.0,0.00017,2]
[399537076,1766460648117,-1000.0,0.00017,2]
[399537077,1766460648126,-1000.0,0.00017,2]
[399537078,1766460648136,-1000.0,0.00017,2]
[399537079,1766460648145,-1000.0,0.00017,2]
[399537080,1766460648155,-1000.0,0.00017,2]
[399537081,1766460648164,-1000.0,0.00017,2]
[399537082,1766460648173,-1000.0,0.00017,2]
[399537083,1766460648183,-1000.0,0.00017,2]
[399537084,1766460648193,-1000.0,0.00017,2]
[399537085,1766460648318,-1000.0,0.00017,2]
[399537086,1766460648328,-1000.0,0.00017,2]
[399537087,1766460648337,-1000.0,0.00017,2]
[399537088,1766460648351,-1000.0,0.00017,2]
[399537089,1766460648361,-1000.0,0.00017,2]
[399537090,1766460648370,-1000.0,0.00017,2]
[399537091,1766460648379,-1000.0,0.00017,2]
[399537092,1766460648388,-1000.0,0.00017,2]
[399537093,1766460648396,-1000.0,0.00017,2]
[399537094,1766460648405,-1000.0,0.00017,2]
[399537095,1766460648416,-1000.0,0.00017,2]
[399537096,1766460648427,-1000.0,0.00017,2]
[399537097,1766460648436,-1000.0,0.00017,2]
[399537098,1766460648446,-1000.0,0.00017,2]
[399537099,1766460648456,-1000.0,0.00017,2]
[399537100,1766460648465,-1000.0,0.00017,2]
[399537101,1766460648474,-1000.0,0.00017,2]
[399537102,1766460648483,-1000.0,0.00017,2]
[399537103,1766460648492,-1000.0,0.00017,2]
[399537104,1766460648501,-1000.0,0.00017,2]
[399537105,1766460648510,-1000.0,0.00017,2]
[399537106,1766460648520,-1000.0,0.00017,2]
[399537107,1766460648529,-1000.0,0.00017,2]
[399537108,1766460648537,-1000.0,0.00017,2]
[399537109,1766460648548,-1000.0,0.00017,2]
[399537110,1766460648557,-1000.0,0.00017,2]
[399537111,1766460648567,-1000.0,0.00017,2]
[399537112,1766460648576,-1000.0,0.00017,2]
[399537113,1766460648585,-1000.0,0.00017,2]
[399537114,1766460648594,-762.93653257,0.00017,2]
[399537115,1766460648603,-1000.0,0.00017,2]
[399537116,1766460648612,-1000.0,0.00017,2]
[399537117,1766460648621,-1000.0,0.00017,2]
[399537118,1766460648630,-1000.0,0.00017,2]
[399537119,1766460648639,-1000.0,0.00017,2]
[399537120,1766460648648,-1000.0,0.00017,2]
[399537121,1766460648657,-1000.0,0.00017,2]
[399537122,1766460648666,-1000.0,0.00017,2]
[399537123,1766460648675,-1000.0,0.00017,2]
[399537124,1766460648684,-1000.0,0.00017,2]
[399537125,1766460648693,-1000.0,0.00017,2]
[399537126,1766460648702,-1000.0,0.00017,2]
[399537127,1766460648712,-1000.0,0.00017,2]
[399537128,1766460648721,-1000.0,0.00017,2]
[399537129,1766460648730,-1000.0,0.00017,2]
[399537130,1766460648740,-1000.0,0.00017,2]
[399537131,1766460648749,-1000.0,0.00017,2]
[399537132,1766460648758,-1000.0,0.00017,2]
[399537133,1766460648767,-1000.0,0.00017,2]
[399537134,1766460648776,-1000.0,0.00017,2]
[399537135,1766460648786,-1000.0,0.00017,2]
[399537136,1766460648796,-1000.0,0.00017,2]
[399537137,1766460648805,-1000.0,0.00017,2]
[399537138,1766460648814,-437.23,0.00017,2]
[399537139,1766460648823,-150.0,0.00017,2]
[399537140,1766460648833,-150.0,0.00017,2]
[399537141,1766460648842,-573.57875617,0.00017,2]
[399537142,1766460648852,-5761.3737541,0.00017,2]
[399537143,1766460648861,-150.0,0.00017,2]
[399537144,1766460648870,-2285.4472212,0.00017,2]
[399537145,1766460648880,-150.0,0.00017,2]
[399537146,1766460648891,-49000.06675196,0.00017,2]
[399537147,1766460648903,-965945.94620833,0.00017,2]
[399537148,1766460649430,-4065.58012154,0.00017,2]
[399537149,1766460649446,-49292.92075224,0.00017,2]
[399537150,1766460649462,-311.98467859,0.00017,2]
[399537151,1766460649474,-524.9326699,0.00017,2]
[399537152,1766460649611,-947.86815826,0.00014791,2]
[399537153,1766460649632,-378.13184174,0.00014791,2]
[399537154,1766460649642,-151.0,0.00014935,2]
[399537155,1766460649651,-3527.16219932,0.00017,2]
[399537156,1766460649663,-2965.8690525,0.00017,2]
[399537157,1766460649710,-156.36033446,0.00014795,2]
[399537158,1766460649720,-521.0683593,0.00014795,2]
[399537159,1766460649730,-673.34912008,0.00017,2]
[399537160,1766460649741,-6435.23891179,0.00017,2]
[399537161,1766460649753,-4221.4,0.00017,2]
[399537162,1766460649772,-355.36519998,0.00017,2]
[399537163,1766460649784,-700.53782515,0.00017,2]
[399537164,1766460650042,-189.6601405,0.00014042,2]
[399537165,1766460650052,-170.7,0.00014795,2]
[399537166,1766460650061,-511.2019195,0.00017,2]
[399537167,1766460650073,-6406.5498586,0.00017,2]
[399537168,1766460650088,-881.11253648,0.00017,2]
[399537169,1766460650123,-769.79160068,0.00017,2]
[399537170,1766460650134,-1547.45823865,0.00017,2]
[399537171,1766460650149,-4872.59661998,0.00017,2]
[399537172,1766460650160,-881.56,0.00017,2]
[399537173,1766460650172,-929.27452614,0.00017,2]
[399537174,1766460650188,-421.265,0.00017,2]
[399537175,1766460650199,-3526.8,0.00017,2]
[399537176,1766460650210,-21540.88881389,0.00017,2]
[399537177,1766460650222,-969.56004361,0.00017,2]
[399537178,1766460650233,-4868.48281942,0.00017,2]
[399537179,1766460650244,-1950.21131037,0.00017,2]
[399537180,1766460650256,-325.0,0.00017,2]
[399537181,1766460650268,-253.52,0.00017,2]
[399537182,1766460650281,-2910.41041625,0.00017,2]
[399537183,1766460671034,262.95,0.00013,10]
[399537184,1766460717868,200.0,0.00013699,3]
[399537185,1766460728324,200.0,0.00013973,3]
[399537190,1766461234510,249.9999,0.000226,120]
[399537223,1766461832224,-874.0,0.00013279,2]
[399537224,1766461832276,-1093.47,0.00013279,2]
[399537225,1766461832287,-300.0,0.00013357,2]
[399537226,1766461832296,-2380.3507,0.00013358,2]
[399537227,1766461832311,-745.6569597,0.00013358,2]
[399537228,1766461832327,-1355.1353403,0.00013358,2]
[399537229,1766461832337,-308.333,0.00013358,2]
[399537230,1766461832698,-150.0,0.00013529,2]
[399537231,1766461832707,-150.0,0.0001353,2]
[399537232,1766461832717,-2500.0,0.00013531,2]
[399537233,1766461832726,-659.30697042,0.00013531,2]
[399537234,1766461832761,-3967.18222958,0.00013531,2]
[399537235,1766461832771,-235.9929,0.00013531,2]
[399537236,1766461832780,-423.772821,0.00013531,2]
[399537237,1766461832789,-163.84,0.000136,2]
[399537238,1766461832798,-151.0,0.00013623,2]
[399537239,1766461832808,-151.0,0.00013623,2]
[399537241,1766461832817,-151.0,0.00013623,2]
[399537243,1766461832826,-151.0,0.00013623,2]
[399537244,1766461832835,-151.0,0.00013623,2]
[399537246,1766461832844,-151.0,0.00013623,2]
[399537248,1766461832853,-153.21186412,0.00013623,2]
[399537251,1766461832862,-500.0,0.00013623,2]
[399537253,1766461832871,-200.0,0.00013623,2]
[399537254,1766461832881,-500.0,0.00013623,2]
[399537256,1766461832889,-500.0,0.00013623,2]
[399537258,1766461832899,-500.0,0.00013623,2]
[399537259,1766461832908,-4.0541159,0.00013623,2]
[399537260,1766461832919,-495.9458841,0.00013623,2]
[399537261,1766461832929,-375.65300863,0.00013623,2]
[399537262,1766461832940,-124.34699137,0.00013623,2]
[399537263,1766461832949,-500.0,0.00013623,2]
[399537264,1766461832958,-500.0,0.00013623,2]
[399537265,1766461832967,-244.43943734,0.00013623,2]
[399537266,1766461832983,-255.56056266,0.00013623,2]
[399537267,1766461832993,-500.0,0.00013623,2]
[399537268,1766461833002,-500.0,0.00013623,2]
[399537269,1766461833012,-500.0,0.00013623,2]
[399537270,1766461833022,-500.0,0.00013623,2]
[399537271,1766461833031,-500.0,0.00013623,2]
[399537272,1766461833041,-500.0,0.00013623,2]
[399537273,1766461833050,-500.0,0.00013623,2]
[399537274,1766461833059,-500.0,0.00013623,2]
[399537275,1766461833068,-500.0,0.00013623,2]
[399537276,1766461833077,-144.81425264,0.00013623,2]
[399537277,1766461833089,-355.18574736,0.00013623,2]
[399537278,1766461833098,-460.40338341,0.00013623,2]
[399537279,1766461838541,-39.59661659,0.00013623,2]
[399537280,1766461838550,-500.0,0.00013623,2]
[399537281,1766461838560,-355.92487731,0.00013623,2]
[399537282,1766461838594,-144.07512269,0.00013623,2]
[399537283,1766461838603,-151.0,0.00013623,2]
[399537284,1766461838612,-151.0,0.00013623,2]
[399537285,1766461838622,-151.0,0.00013623,2]
[399537286,1766461838632,-36.20333675,0.00013623,2]
[399537463,1766461840375,-114.79666325,0.00013623,2]
[399537465,1766461840386,-151.0,0.00013623,2]
[399537467,1766461840395,-151.0,0.00013623,2]
[399537469,1766461840405,-151.0,0.00013623,2]
[399537471,1766461840415,-151.0,0.00013623,2]
[399537473,1766461840424,-151.0,0.00013623,2]
[399537475,1766461840433,-151.0,0.00013623,2]
[399537477,1766461840443,-151.0,0.00013623,2]
[399537479,1766461840452,-320.7006,0.00013631,2]
[399537481,1766461840462,-1000.0,0.00013631,2]
[399537483,1766461840472,-9999.99,0.00013631,2]
[399537485,1766461840482,-150.99,0.00013631,2]
[399537487,1766461840491,-1600.44,0.00013631,2]
[399537489,1766461840500,-4999.99,0.00013631,2]
[399537491,1766461840509,-9999.99,0.00013631,2]
[399537493,1766461840519,-299.99,0.00013631,2]
[399537495,1766461840528,-999.99,0.00013699,2]
[399537498,1766461840537,-1000.0,0.00013699,2]
[399537500,1766461840547,-166.66,0.00013699,2]
[399537501,1766461840556,-500.0,0.0001373,2]
[399537504,1766461840566,-535.41744153,0.0001373,2]
[399537506,1766461840575,-500.0,0.0001373,2]
[399537507,1766461840584,-589.1984419,0.0001373,2]
[399537509,1766461840594,-166.66,0.00013836,2]
[399537512,1766461840603,-1600.0,0.00013852,2]
[399537514,1766461840613,-243.94719727,0.0001393,2]
[399537516,1766461840622,-500.0,0.0001393,2]
[399537518,1766461840631,-500.0,0.0001393,2]
[399537520,1766461840640,-500.0,0.0001393,2]
[399537522,1766461840649,-527.36006097,0.0001393,2]
[399537524,1766461840658,-166.66,0.00013973,2]
[399537526,1766461840667,-484.0,0.00014059,2]
[399537528,1766461840676,-166.66,0.0001411,2]
[399537530,1766461840685,-500.0,0.00014173,2]
[399537532,1766461840694,-166.66,0.00014247,2]
[399537533,1766461840703,-166.66,0.00014384,2]
[399537535,1766461840712,-1000.0,0.00014594,2]
[399537537,1766461840721,-195.0,0.00014607,2]
[399537539,1766461840731,-200.0,0.00014639,2]
[399537541,1766461840740,-420.0,0.00014643,2]
[399537543,1766461840749,-262.77314397,0.00014694,2]
[399537545,1766461840758,-1000.0,0.00014721,2]
[399537547,1766461840767,-151.0,0.00015088,2]
[399537549,1766461840776,-151.0,0.00015093,2]
[399537551,1766461840786,-151.0,0.000151,2]
[399537553,1766461840795,-151.0,0.00015106,2]
[399537556,1766461840805,-249.19,0.00015179,2]
[399537558,1766461840815,-1326.0,0.00015185,2]
[399537560,1766461840824,-1609.0,0.00015185,2]
[399537562,1766461840834,-615.062,0.00015185,2]
[399537564,1766461840843,-518.0,0.00015185,2]
[399537566,1766461840852,-1263.0,0.00015185,2]
[399537568,1766461840860,-564.0,0.00015185,2]
[399537570,1766461840870,-2430.0,0.00015185,2]
[399537572,1766461840879,-189.904,0.00015185,2]
[399537574,1766461840888,-578.20924308,0.00015196,2]
[399537576,1766461840897,-155.81290792,0.00015196,2]
[399537578,1766461840906,-721.12765535,0.00015196,2]
[399537580,1766461840916,-1108.0,0.00015196,2]
[399537582,1766461840925,-250.0,0.00015196,2]
[399537584,1766461840934,-369.12077594,0.00015196,2]
[399537586,1766461840943,-151.0,0.00015196,2]
[399537588,1766461840952,-500.0,0.00015196,2]
[399537590,1766461840961,-620.0,0.00015196,2]
[399537592,1766461840970,-500.0,0.00015196,2]
[399537594,1766461840979,-500.0,0.00015196,2]
[399537596,1766461840988,-1500.0,0.00015196,2]
[399537598,1766461840997,-500.0,0.00015196,2]
[399537600,1766461841006,-1500.0,0.00015196,2]
[399537602,1766461841015,-500.0,0.00015196,2]
[399537604,1766461841024,-1500.0,0.00015196,2]
[399537606,1766461841033,-256.61688806,0.00015196,2]
[399537608,1766461841043,-574.12855637,0.00015196,2]
[399537610,1766461841052,-1500.0,0.00015196,2]
[399537611,1766461841061,-1500.0,0.00015196,2]
[399537612,1766461841072,-1500.0,0.00015196,2]
[399537613,1766461841080,-1500.0,0.00015196,2]
[399537614,1766461841090,-862.65561071,0.00015196,2]
[399537615,1766461841098,-1500.0,0.00015196,2]
[399537616,1766461841108,-250.0,0.00015196,2]
[399537617,1766461841117,-250.0,0.00015196,2]
[399537618,1766461841126,-250.0,0.00015196,2]
[399537619,1766461841135,-250.0,0.00015196,2]
[399537620,1766461841144,-250.0,0.00015196,2]
[399537621,1766461841153,-1000.0,0.00015196,2]
[399537622,1766461841162,-1000.0,0.00015196,2]
[399537623,1766461841170,-1000.0,0.00015196,2]
[399537624,1766461841180,-1000.0,0.00015196,2]
[399537625,1766461841189,-1000.0,0.00015196,2]
[399537626,1766461841197,-1000.0,0.00015196,2]
[399537627,1766461841207,-250.0,0.00015196,2]
[399537628,1766461841215,-1000.0,0.00015196,2]
[399537629,1766461841224,-362.01149358,0.00015196,2]
[399537630,1766461841233,-1000.0,0.00015196,2]
[399537631,1766461841242,-1000.0,0.00015196,2]
[399537632,1766461841255,-1000.0,0.00015196,2]
[399537633,1766461841265,-1000.0,0.00015196,2]
[399537634,1766461841274,-322.6107,0.00015196,2]
[399537635,1766461841283,-1005.95243998,0.00015268,2]
[399537636,1766461841293,-158.53746768,0.00015288,2]
[399537638,1766461841303,-150.0,0.00015288,2]
[399537672,1766461841594,-160.42119279,0.00015288,2]
[399537674,1766461841604,-169.21,0.00015309,2]
[399537676,1766461841612,-500.0,0.00015342,2]
[399537678,1766461841621,-1600.0,0.00015583,2]
[399537680,1766461841630,-595.37131296,0.00015744,2]
[399537682,1766461841639,-478.1889949,0.00015744,2]
[399537684,1766461841648,-423.77282098,0.00015821,2]
[399537686,1766461841659,-8202.0,0.00015877,2]
[399537688,1766461841668,-587.0,0.00016053,2]
[399537690,1766461841677,-617.40005154,0.00016292,2]
[399537692,1766461841688,-647.0,0.00016301,2]
[399537694,1766461841697,-207.4,0.00016362,2]
[399537696,1766461841706,-1000.0,0.00016418,2]
[399537698,1766461841715,-5704.5,0.00016438,2]
[399537700,1766461841725,-1219.58,0.00016438,2]
[399537702,1766461841734,-1219.58,0.00016438,2]
[399537704,1766461841743,-1219.58,0.00016438,2]
[399537706,1766461841752,-1219.58,0.00016438,2]
[399537708,1766461841762,-1219.58,0.00016438,2]
[399537710,1766461841771,-1652.27,0.00016496,2]
[399537713,1766461841781,-151.0,0.00016565,2]
[399537715,1766461841791,-334.5472959,0.00016565,2]
[399537717,1766461841800,-3897.3530658,0.0001666,2]
[399537719,1766461841809,-500.0,0.00016699,2]
[399537721,1766461841819,-500.0,0.00016699,2]
[399537723,1766461841829,-500.0,0.00016699,2]
[399537725,1766461841837,-442.0,0.00016699,2]
[399537726,1766461841846,-500.0,0.00016699,2]
[399537728,1766461841855,-150.0,0.00016699,2]
[399537731,1766461841865,-150.0,0.00016699,2]
[399537733,1766461841874,-150.0,0.00016699,2]
[399537735,1766461841887,-500.0,0.00016699,2]
[399537737,1766461841896,-500.0,0.00016699,2]
[399537739,1766461841905,-572.0,0.00016699,2]
[399537741,1766461841914,-150.0,0.00016699,2]
[399537743,1766461841923,-500.0,0.00016699,2]